bitfinex-derivatives/quotes_BTCF0:USTF0_20250930
["timestamp","ask_amount","ask_price","bid_price","bid_amount"]
[1759193954297,0.39349785,114610.0,114600.0,0.02294]
[1759193954497,0.79349785,114610.0,114600.0,0.0542209]
[1759193954685,1.0649958,114610.0,114600.0,0.0312809]
[1759193954891,0.087197,114600.0,114590.0,0.43900226]
[1759193955090,1.8874829,114600.0,114590.0,0.0312809]
[1759193955510,0.1229746,114590.0,114580.0,0.04692136]
[1759193955694,0.39447255,114590.0,114580.0,0.07010136]
[1759193956201,0.86408432,114590.0,114580.0,0.04692136]
[1759193956401,0.1005125,114580.0,114570.0,0.3608]
[1759193956596,0.1005125,114580.0,114570.0,0.4480201]
[1759193956597,0.41412405,114580.0,114570.0,0.4480201]
[1759193957196,0.41412405,114580.0,114570.0,0.3608]
[1759193957400,1.27464405,114580.0,114570.0,0.3608]
[1759193957611,0.41412405,114580.0,114570.0,0.3608]
[1759193957801,1.27464405,114580.0,114570.0,0.38398]
[1759193958508,1.25500045,114580.0,114570.0,0.38398]
[1759193958998,0.39448045,114580.0,114570.0,0.38398]
[1759193959198,1.25496045,114580.0,114570.0,0.38398]
[1759193959608,0.39448045,114580.0,114570.0,0.38398]
[1759193959907,1.25484045,114580.0,114570.0,0.3608]
[1759193960208,1.25484045,114580.0,114560.0,0.49494536]
[1759193960406,0.30647795,114570.0,114560.0,0.38372]
[1759193960606,0.39369815,114570.0,114560.0,0.4709478]
[1759193960797,0.03498,114570.0,114560.0,0.4709478]
[1759193960997,0.30647795,114570.0,114560.0,0.4709478]
[1759193961202,0.31512289,114570.0,114560.0,0.4709478]
[1759193962307,0.03498,114570.0,114560.0,0.4709478]
[1759193962503,0.30647795,114570.0,114560.0,0.4709478]
[1759193965514,0.39369805,114570.0,114560.0,0.4709478]
[1759193971215,0.30647795,114570.0,114560.0,0.4709478]
[1759193971916,0.03498,114570.0,114560.0,0.4709478]
[1759193972113,0.02165,114570.0,114560.0,1.15532575]
[1759193972315,0.03495,114580.0,114570.0,0.1129602]
[1759193972515,0.02245,114580.0,114570.0,0.4737602]
[1759193973219,0.0008,114580.0,114570.0,1.14525815]
[1759193973611,0.09126177,114590.0,114580.0,0.1218826]
[1759193973805,0.09126177,114590.0,114580.0,0.4826826]
[1759193973806,0.10067255,114590.0,114580.0,0.4826826]
[1759193974016,0.11400255,114590.0,114580.0,0.4709326]
[1759193974211,0.10539177,114590.0,114580.0,0.4709326]
[1759193974610,0.10459177,114590.0,114580.0,0.4826826]
[1759193974812,0.10499177,114590.0,114580.0,0.4826826]
[1759193975409,0.10499177,114590.0,114580.0,0.4709326]
[1759193975912,0.09166177,114590.0,114580.0,0.4709326]
[1759193976119,0.09166177,114590.0,114580.0,0.75418055]
[1759193976317,0.07001177,114590.0,114580.0,2.01310055]
[1759193976517,0.06961177,114590.0,114580.0,2.06002191]
[1759193976717,0.0004,114590.0,114580.0,2.06002191]
[1759193977113,1.23094195,114610.0,114600.0,0.1101173]
[1759193977114,1.25259195,114610.0,114600.0,0.1101173]
[1759193977318,1.26119459,114610.0,114600.0,0.4709173]
[1759193977715,1.26119459,114610.0,114600.0,0.02292]
[1759193977915,0.1221773,114600.0,114590.0,0.470922]
[1759193978222,0.66506768,114600.0,114590.0,0.470922]
[1759193979514,0.1221773,114600.0,114590.0,0.470922]
[1759193979707,0.66506768,114600.0,114590.0,0.470922]
[1759193984010,0.66506768,114600.0,114590.0,0.38372]
[1759193984215,1.06506768,114600.0,114590.0,0.38372]
[1759193984419,1.08482539,114600.0,114590.0,0.3608]
[1759193984818,0.1221849,114590.0,114580.0,0.74237099]
[1759193985017,0.39363009,114590.0,114580.0,0.4709258]
[1759193985522,0.30642519,114590.0,114580.0,0.4709258]
[1759193985915,0.37490699,114590.0,114580.0,0.74237099]
[1759193986223,0.1034618,114590.0,114580.0,0.74237099]
[1759193986523,0.37490699,114590.0,114580.0,0.78929235]
[1759193987122,0.1034618,114590.0,114580.0,0.78929235]
[1759193987321,0.36157699,114590.0,114580.0,0.75412099]
[1759193987917,0.0901318,114590.0,114580.0,1.07248754]
[1759193988424,0.1028118,114590.0,114580.0,0.51784716]
[1759193988723,0.37425699,114590.0,114580.0,0.78929235]
[1759193988918,0.37425699,114590.0,114580.0,0.51784716]
[1759193989126,0.37425699,114590.0,114580.0,0.78929235]
[1759193991726,0.46146189,114590.0,114580.0,0.78929235]
[1759193991920,0.46146189,114590.0,114580.0,0.51784716]
[1759193992127,0.46146189,114590.0,114580.0,0.78929235]
[1759193992527,0.46146189,114590.0,114580.0,0.74237099]
[1759193993426,0.1900167,114590.0,114580.0,0.74237099]
[1759193993619,0.46146189,114590.0,114580.0,0.74237099]
[1759193994128,0.1900167,114590.0,114580.0,0.74237099]
[1759193994326,0.46146189,114590.0,114580.0,0.74237099]
[1759193996425,0.48127441,114590.0,114580.0,0.74237099]
[1759193996626,0.48127441,114590.0,114580.0,0.4709258]
[1759193996829,0.46146189,114590.0,114580.0,0.74237099]
[1759193998628,0.46146189,114590.0,114580.0,0.4709258]
[1759193998817,0.46146189,114590.0,114580.0,0.74237099]
[1759193999826,0.37425699,114590.0,114580.0,0.74237099]
[1759194000428,0.48128925,114590.0,114580.0,0.4709325]
[1759194000627,0.48128925,114590.0,114580.0,0.65516519]
[1759194000827,0.48128925,114590.0,114580.0,0.74237769]
[1759194001526,0.48128925,114590.0,114580.0,0.65516519]
[1759194001731,1.51353444,114590.0,114580.0,0.02292]
[1759194001927,0.1225425,114580.0,114570.0,0.470919]
[1759194002119,0.67107634,114580.0,114570.0,0.470919]
[1759194002323,0.39963115,114580.0,114570.0,0.470919]
[1759194002925,0.32660255,114580.0,114570.0,0.74236419]
[1759194004429,0.32660255,114580.0,114570.0,0.78928555]
[1759194005331,0.01982736,114580.0,114570.0,0.79210555]
[1759194005633,1.31838469,114590.0,114580.0,0.1101126]
[1759194005829,1.33822382,114590.0,114580.0,0.1101126]
[1759194006231,1.33822382,114590.0,114580.0,0.4709126]
[1759194007235,1.06677863,114590.0,114580.0,0.0229]
[1759194007434,1.33822382,114590.0,114580.0,0.0229]
[1759194007629,1.33822382,114590.0,114580.0,0.4709126]
[1759194007834,1.25077612,114590.0,114580.0,0.4709126]
[1759194008235,1.33798102,114590.0,114580.0,0.4709126]
[1759194009829,0.39509612,114590.0,114580.0,0.4709126]
[1759194010227,0.12365093,114590.0,114580.0,1.01380298]
[1759194010427,0.0911318,114590.0,114580.0,0.80102915]
[1759194010635,0.44978189,114590.0,114580.0,0.80102915]
[1759194010835,0.46246189,114590.0,114580.0,0.80102915]
[1759194011035,0.46246189,114590.0,114580.0,0.78927915]
[1759194011431,0.48229784,114590.0,114580.0,0.78927915]
[1759194011929,0.37525699,114590.0,114580.0,0.78927915]
[1759194012132,0.46246189,114590.0,114580.0,0.78927915]
[1759194012530,0.46246189,114590.0,114580.0,0.51783396]
[1759194012731,0.46246189,114590.0,114580.0,0.78927915]
[1759194013436,0.46246189,114590.0,114580.0,0.51783396]
[1759194013639,0.46246189,114590.0,114580.0,0.78927915]
[1759194014438,0.48229869,114590.0,114580.0,0.78927915]
[1759194014638,0.48229869,114590.0,114580.0,0.51783396]
[1759194014837,0.48229869,114590.0,114580.0,0.78927915]
[1759194016436,0.48229869,114590.0,114580.0,0.51783396]
[1759194016635,0.48229869,114590.0,114580.0,0.78927915]
[1759194016939,0.48229869,114590.0,114580.0,0.74235779]
[1759194017134,0.1236486,114590.0,114580.0,0.74235779]
[1759194017329,0.39509379,114590.0,114580.0,0.74235779]
[1759194018043,0.48229869,114590.0,114580.0,0.74235779]
[1759194018232,0.48229869,114590.0,114580.0,0.4709126]
[1759194018433,0.48229869,114590.0,114580.0,0.74235779]
[1759194018733,0.48229869,114590.0,114580.0,0.4709126]
[1759194020335,0.48229869,114590.0,114580.0,0.1101125]
[1759194023045,0.48229869,114590.0,114580.0,0.0229]
[1759194023541,0.46246189,114590.0,114580.0,0.1101125]
[1759194024338,0.48230466,114590.0,114580.0,0.1101125]
[1759194024532,0.48230466,114590.0,114570.0,0.51637954]
[1759194024533,0.1218126,114580.0,114570.0,0.51637954]
[1759194024839,0.30604519,114580.0,114570.0,0.51637954]
[1759194025034,0.66470298,114580.0,114570.0,0.51637954]
[1759194026241,0.66470298,114580.0,114570.0,0.42916404]
[1759194026441,0.66470298,114580.0,114570.0,0.40769404]
[1759194026642,1.06470298,114580.0,114570.0,0.42916404]
[1759194026842,1.93830049,114580.0,114570.0,0.42916404]
[1759194027042,1.93830049,114580.0,114570.0,0.38227]
[1759194027335,0.54173011,114580.0,114570.0,0.4694902]
[1759194027538,0.4131753,114580.0,114570.0,0.4694902]
[1759194027739,1.1795227,114580.0,114570.0,0.78782943]
[1759194027934,1.2667353,114580.0,114570.0,0.51638424]
[1759194028331,1.53818049,114580.0,114570.0,0.51638424]
[1759194028536,0.68462049,114580.0,114570.0,0.51638424]
[1759194028736,1.53806049,114580.0,114570.0,0.51638424]
[1759194029145,0.99517011,114580.0,114570.0,0.51638424]
[1759194029337,1.1793627,114580.0,114570.0,0.78782943]
[1759194029837,1.2665753,114580.0,114570.0,0.78782943]
[1759194030237,1.53802049,114580.0,114570.0,0.42916404]
[1759194030443,0.99513011,114580.0,114570.0,0.42916404]
[1759194030743,1.53802049,114580.0,114570.0,0.38227]
[1759194031741,1.93802049,114580.0,114570.0,0.3608]
[1759194031940,0.1218202,114570.0,114560.0,0.06836404]
[1759194032243,0.68462809,114570.0,114560.0,0.04689404]
[1759194032647,0.1218278,114560.0,114550.0,0.5193896]
[1759194032944,1.53771509,114560.0,114550.0,0.4321558]
[1759194033143,1.53771524,114560.0,114550.0,0.4106858]
[1759194033453,0.66471818,114560.0,114550.0,0.36379176]
[1759194033647,1.51767818,114560.0,114550.0,0.36379176]
[1759194033844,1.51763818,114560.0,114550.0,0.36379176]
[1759194034254,1.53754671,114560.0,114550.0,0.36379176]
[1759194034545,0.68462671,114560.0,114550.0,0.11169716]
[1759194034756,1.53750671,114560.0,114550.0,0.11169716]
[1759194035248,0.99461633,114560.0,114550.0,0.11169716]
[1759194035551,1.45027891,114560.0,114550.0,0.11169716]
[1759194035850,0.68462671,114560.0,114550.0,0.11169716]
[1759194036054,1.53738671,114560.0,114550.0,0.11169716]
[1759194037349,1.53738671,114560.0,114550.0,0.02446176]
[1759194037747,1.53738671,114560.0,114550.0,0.00299176]
[1759194038248,1.26617822,114560.0,114550.0,0.00299176]
[1759194039147,0.41341822,114560.0,114550.0,0.00299176]
[1759194039352,1.26597822,114560.0,114550.0,0.00299176]
[1759194040849,0.41341822,114560.0,114550.0,0.00299176]
[1759194041153,1.26577822,114560.0,114550.0,0.00299176]
[1759194041452,1.66573822,114560.0,114550.0,0.00299176]
[1759194041655,1.66569822,114560.0,114550.0,0.00299176]
[1759194041851,1.26569822,114560.0,114550.0,0.00299176]
[1759194043144,2.02649822,114560.0,114550.0,0.00299176]
[1759194043348,2.29818011,114560.0,114550.0,0.00299176]
[1759194043548,2.02649822,114560.0,114550.0,0.00299176]
[1759194043745,1.17421822,114560.0,114550.0,0.00299176]
[1759194044155,2.02629822,114560.0,114550.0,0.00299176]
[1759194044549,1.17421822,114560.0,114550.0,0.00299176]
[1759194045048,2.02621822,114560.0,114550.0,0.00299176]
[1759194045354,2.02617822,114560.0,114550.0,0.00299176]
[1759194045549,2.02613822,114560.0,114550.0,0.00299176]
[1759194046355,1.17421822,114560.0,114550.0,0.00299176]
[1759194046755,2.02605822,114560.0,114550.0,0.00299176]
[1759194046949,2.02601822,114560.0,114550.0,0.00299176]
[1759194048249,2.02601822,114560.0,114550.0,0.00299163]
[1759194048756,2.02605822,114560.0,114550.0,0.00299163]
[1759194049067,1.17421822,114560.0,114550.0,0.00299163]
[1759194049258,2.02585822,114560.0,114550.0,0.00299163]
[1759194050056,2.02577822,114560.0,114550.0,0.00299163]
[1759194050456,1.17421822,114560.0,114550.0,0.00299163]
[1759194050653,2.02573822,114560.0,114550.0,0.00299163]
[1759194051246,0.50253633,114560.0,114550.0,0.02627163]
[1759194051451,1.62569822,114560.0,114550.0,0.02627163]
[1759194051646,1.62565822,114560.0,114550.0,0.00299163]
[1759194052051,1.62561822,114560.0,114550.0,0.02627163]
[1759194052250,0.77421822,114560.0,114550.0,0.02627163]
[1759194052752,0.14173663,114560.0,114550.0,0.47430743]
[1759194053058,1.26509852,114560.0,114550.0,0.38707163]
[1759194054262,1.26497852,114560.0,114550.0,0.78707163]
[1759194054462,0.41381852,114560.0,114550.0,0.78707163]
[1759194054652,1.26497852,114560.0,114550.0,0.78707163]
[1759194055262,1.26493852,114560.0,114550.0,0.87430743]
[1759194055558,0.0346,114560.0,114550.0,1.15886932]
[1759194055755,0.02181,114560.0,114550.0,1.15886932]
[1759194056059,0.02141,114560.0,114550.0,0.88718743]
[1759194056251,0.87281,114560.0,114550.0,0.88718743]
[1759194056456,0.87241,114560.0,114550.0,0.88718743]
[1759194056655,0.02181,114560.0,114550.0,0.88718743]
[1759194056863,0.0004,114560.0,114550.0,1.15886932]
[1759194057062,0.88541,114570.0,114560.0,0.1105081]
[1759194057260,0.90608378,114570.0,114560.0,0.4713081]
[1759194057563,0.87075378,114570.0,114560.0,1.15586999]
[1759194057756,0.87115378,114570.0,114560.0,1.15586999]
[1759194058163,0.01987378,114570.0,114560.0,1.15586999]
[1759194058364,0.02027378,114570.0,114560.0,1.15586999]
[1759194058756,0.0004,114570.0,114560.0,1.15586999]
[1759194059164,0.39385239,114570.0,114560.0,0.78408]
[1759194059560,1.24449239,114570.0,114560.0,0.02328]
[1759194059764,1.26437569,114570.0,114560.0,0.02328]
[1759194059963,0.03455,114560.0,114550.0,0.38707163]
[1759194060164,0.30623189,114560.0,114550.0,0.47430743]
[1759194060362,0.39345999,114560.0,114550.0,0.38707163]
[1759194060664,0.30623189,114560.0,114550.0,0.47430743]
[1759194061070,1.15675189,114560.0,114550.0,0.47430743]
[1759194061567,0.88507,114560.0,114550.0,0.47468952]
[1759194062069,0.9722981,114560.0,114550.0,0.38745372]
[1759194062563,1.24397999,114560.0,114550.0,0.38745372]
[1759194062770,1.24397999,114560.0,114550.0,0.36417372]
[1759194063166,1.26387685,114560.0,114550.0,0.00337372]
[1759194064367,2.02467685,114560.0,114550.0,0.00337372]
[1759194065574,2.02168532,114560.0,114550.0,0.00038209]
[1759194066174,1.17116532,114560.0,114550.0,0.00038209]
[1759194066474,2.02128532,114560.0,114550.0,0.00038209]
[1759194066675,2.0526694,114560.0,114550.0,0.00038209]
[1759194067377,2.02128532,114560.0,114550.0,0.00038209]
[1759194067774,2.0526694,114560.0,114550.0,0.00038209]
[1759194068175,2.02128532,114560.0,114550.0,0.00038209]
[1759194069182,2.0525494,114560.0,114550.0,0.00038209]
[1759194070181,2.0525094,114560.0,114550.0,0.00038209]
[1759194070780,1.2025494,114560.0,114550.0,0.00038209]
[1759194071272,2.0524294,114560.0,114550.0,0.00038209]
[1759194072391,0.0872434,114540.0,114530.0,0.36086305]
[1759194072689,1.89565404,114540.0,114530.0,6.305e-05]
[1759194074090,1.04585404,114540.0,114530.0,6.305e-05]
[1759194074285,1.35217026,114540.0,114530.0,0.02334305]
[1759194074485,0.77417215,114540.0,114530.0,0.02334305]
[1759194074891,0.77417215,114540.0,114530.0,0.47139405]
[1759194074892,0.32612875,114540.0,114530.0,0.47139405]
[1759194075080,0.04119686,114540.0,114530.0,1.15629594]
[1759194075282,0.89083686,114540.0,114530.0,1.15629594]
[1759194075479,0.89123686,114540.0,114530.0,0.88461405]
[1759194075777,0.89083686,114540.0,114530.0,0.88461405]
[1759194075991,0.89123686,114540.0,114530.0,0.88461405]
[1759194076287,0.89119686,114540.0,114530.0,0.88461405]
[1759194076680,0.99108026,114540.0,114530.0,0.88461405]
[1759194076879,0.97387681,114540.0,114530.0,0.88461405]
[1759194077390,1.3328021,114540.0,114530.0,0.87139405]
[1759194077589,1.06104021,114540.0,114530.0,0.87139405]
[1759194077891,0.97379681,114540.0,114530.0,0.87139405]
[1759194078090,0.12427681,114540.0,114530.0,0.87139405]
[1759194078392,0.97379681,114540.0,114530.0,0.87139405]
[1759194079895,1.06104021,114540.0,114530.0,0.87139405]
[1759194080102,1.3327221,114540.0,114530.0,0.87139405]
[1759194080696,1.06976581,114540.0,114530.0,0.87139405]
[1759194080996,1.06976581,114540.0,114530.0,0.78414305]
[1759194081299,1.3414477,114540.0,114530.0,0.78414305]
[1759194081703,1.34151075,114540.0,114530.0,0.78373578]
[1759194082001,1.34151075,114540.0,114530.0,0.87098678]
[1759194082002,0.40474735,114540.0,114530.0,0.87098678]
[1759194082193,1.25398735,114540.0,114530.0,0.87098678]
[1759194082599,0.49199075,114540.0,114530.0,0.78373578]
[1759194082901,1.34119075,114540.0,114530.0,0.78373578]
[1759194083293,1.34119075,114540.0,114530.0,0.87098678]
[1759194083591,1.34119075,114540.0,114530.0,0.78373578]
[1759194084900,1.34111075,114540.0,114530.0,0.78373578]
[1759194085201,1.34107075,114540.0,114530.0,0.78373578]
[1759194087899,1.34091075,114540.0,114530.0,0.78373578]
[1759194088502,0.49199075,114540.0,114530.0,0.78373578]
[1759194088698,1.34087075,114540.0,114530.0,0.78373578]
[1759194088898,1.33210515,114540.0,114530.0,0.87098678]
[1759194089397,1.06042326,114540.0,114530.0,0.87098678]
[1759194089602,0.21158326,114540.0,114530.0,0.87098678]
[1759194089803,1.06034326,114540.0,114530.0,0.87098678]
[1759194091299,1.06030326,114540.0,114530.0,0.78373578]
[1759194091701,1.06030326,114540.0,114530.0,0.42293578]
[1759194091902,1.34081276,114540.0,114530.0,0.78373578]
[1759194092310,1.34069276,114540.0,114530.0,0.87098678]
[1759194094705,1.33174515,114540.0,114530.0,0.87098678]
[1759194095006,1.33174515,114540.0,114530.0,0.78373578]
[1759194096003,1.34058127,114540.0,114530.0,0.78373578]
[1759194097306,1.34058127,114540.0,114530.0,0.87098678]
[1759194097707,1.33154515,114540.0,114530.0,0.87098678]
[1759194098196,0.39602175,114540.0,114530.0,0.87098678]
[1759194098399,1.24418175,114540.0,114530.0,0.87098678]
[1759194099404,1.2528604,114540.0,114530.0,0.47098678]
[1759194100105,1.3401038,114540.0,114530.0,0.47098678]
[1759194100304,1.3401038,114540.0,114530.0,0.74269835]
[1759194100305,0.49197348,114540.0,114530.0,0.74269835]
[1759194100501,1.33997348,114540.0,114530.0,0.74269835]
[1759194101012,1.33957348,114540.0,114530.0,0.74269835]
[1759194101312,0.49197348,114540.0,114530.0,0.74269835]
[1759194101502,0.40473008,114540.0,114530.0,0.74269835]
[1759194101705,0.09907851,114540.0,114530.0,1.20245239]
[1759194101905,0.94699851,114540.0,114530.0,0.80245239]
[1759194102107,0.96904851,114540.0,114530.0,0.80245239]
[1759194102309,1.24116008,114540.0,114530.0,0.80245239]
[1759194102611,1.22126322,114540.0,114530.0,0.80245239]
[1759194102811,0.940873,114540.0,114530.0,0.80245239]
[1759194103212,1.21258457,114540.0,114530.0,0.80245239]
[1759194104213,1.21834723,114540.0,114530.0,0.80245239]
[1759194104811,1.22731319,114540.0,114530.0,0.80245239]
[1759194105409,0.95560162,114540.0,114530.0,0.80245239]
[1759194105608,1.22731319,114540.0,114530.0,0.80245239]
[1759194105805,1.32726659,114540.0,114530.0,0.80245239]
[1759194106115,1.32726659,114540.0,114530.0,0.78959239]
[1759194106917,1.31830063,114540.0,114530.0,0.78959239]
[1759194107113,1.32698228,114540.0,114530.0,0.70234139]
[1759194107707,1.59869385,114540.0,114530.0,0.43062982]
[1759194108017,1.60769385,114540.0,114530.0,0.06982982]
[1759194108209,1.60769385,114540.0,114530.0,0.02293578]
[1759194108517,1.59869385,114540.0,114530.0,0.02293578]
[1759194109110,1.05527071,114540.0,114530.0,0.47098678]
[1759194109313,1.59869385,114540.0,114530.0,0.51788082]
[1759194109816,1.51145045,114540.0,114530.0,0.51788082]
[1759194110017,0.66353045,114540.0,114530.0,0.51788082]
[1759194110205,1.59805385,114540.0,114530.0,0.51788082]
[1759194110605,1.59805385,114540.0,114530.0,0.43062982]
[1759194111115,1.51081045,114540.0,114530.0,0.51788082]
[1759194111313,1.59805385,114540.0,114530.0,0.51788082]
[1759194111515,0.20735071,114540.0,114530.0,0.47098678]
[1759194111717,1.59789385,114540.0,114530.0,0.47098678]
[1759194111918,0.03518,114530.0,114520.0,0.43086404]
[1759194112121,0.68580555,114530.0,114520.0,0.43086183]
[1759194112420,0.68580555,114530.0,114520.0,0.40769183]
[1759194112613,0.6858686,114530.0,114520.0,0.40769183]
[1759194112815,1.0858686,114530.0,114520.0,0.40769183]
[1759194113025,1.4466686,114530.0,114520.0,0.04689183]
[1759194113313,0.1224386,114520.0,114510.0,0.04689183]
[1759194113512,2.16538777,114520.0,114510.0,0.04689183]
[1759194113715,0.1224538,114500.0,114490.0,0.52091989]
[1759194114010,1.24118842,114500.0,114490.0,0.52091989]
[1759194114218,1.51289999,114500.0,114490.0,0.43363869]
[1759194114419,0.57866619,114500.0,114490.0,0.52092019]
[1759194114620,1.15387462,114500.0,114490.0,0.52092019]
[1759194114820,1.15383462,114500.0,114490.0,0.47402836]
[1759194115019,1.16283462,114500.0,114490.0,0.74573993]
[1759194115218,0.89112305,114500.0,114490.0,0.75959993]
[1759194115416,0.86844305,114500.0,114490.0,0.75959993]
[1759194115622,1.14055462,114500.0,114490.0,0.75959993]
[1759194115819,0.86880305,114500.0,114490.0,1.15959993]
[1759194116119,0.00046305,114500.0,114490.0,1.15959993]
[1759194116422,0.00046305,114500.0,114490.0,1.4313115]
[1759194117025,6.305e-05,114500.0,114490.0,1.4313115]
[1759194117217,1.14077157,114520.0,114510.0,0.1104362]
[1759194117415,1.22803017,114520.0,114510.0,0.74294777]
[1759194117815,1.24171017,114520.0,114510.0,0.74294777]
[1759194118016,1.24171017,114520.0,114510.0,0.4712362]
[1759194118213,0.9699986,114520.0,114510.0,0.38397]
[1759194118418,0.0223,114520.0,114510.0,1.15678777]
[1759194118721,0.0349,114520.0,114510.0,1.15678777]
[1759194118911,0.0349,114520.0,114510.0,0.93187185]
[1759194119115,0.0219,114520.0,114510.0,1.20358342]
[1759194119523,0.0219,114520.0,114510.0,1.56438342]
[1759194119524,0.29361157,114520.0,114510.0,1.56438342]
[1759194119725,0.39455017,114520.0,114510.0,1.56438342]
[1759194120726,0.39455017,114520.0,114510.0,1.55054342]
[1759194122028,0.66626174,114520.0,114510.0,0.38397]
[1759194122524,0.66626174,114520.0,114510.0,0.4712362]
[1759194123528,1.51262174,114520.0,114510.0,0.4712362]
[1759194123829,1.51262174,114520.0,114510.0,0.38397]
[1759194124220,1.51262174,114520.0,114510.0,0.3608]
[1759194124426,0.1224462,114510.0,114500.0,0.36351366]
[1759194124729,0.68602811,114510.0,114500.0,0.36351366]
[1759194124933,0.41431654,114510.0,114500.0,0.36351366]
[1759194125128,0.81431654,114510.0,114500.0,0.36351366]
[1759194125432,0.54260497,114510.0,114500.0,0.36351366]
[1759194125725,1.94414811,114510.0,114500.0,0.00271366]
[1759194126731,1.93210811,114510.0,114500.0,0.00271366]
[1759194126930,1.66031654,114510.0,114500.0,0.00271366]
[1759194127724,1.66031654,114510.0,114500.0,0.02588366]
[1759194129734,1.66031654,114510.0,114500.0,0.00271366]
[1759194129935,1.93202811,114510.0,114500.0,0.00271366]
[1759194132734,2.29282811,114510.0,114500.0,0.00271366]
[1759194135330,2.56453968,114510.0,114500.0,0.00271366]
[1759194135639,0.1242215,114490.0,114480.0,0.3608]
[1759194135838,0.1242291,114480.0,114470.0,0.46920097]
[1759194136139,0.66765224,114480.0,114470.0,0.38190927]
[1759194136644,0.58036314,114480.0,114470.0,0.46920597]
[1759194136837,1.42572314,114480.0,114470.0,0.46920597]
[1759194137033,1.42564314,114480.0,114470.0,0.46920597]
[1759194137641,0.30865157,114480.0,114470.0,0.46920597]
[1759194137833,1.15389157,114480.0,114470.0,0.74091754]
[1759194138137,1.22273232,114480.0,114470.0,0.74091754]
[1759194138538,1.22869232,114480.0,114470.0,0.74091754]
[1759194138738,1.22869232,114480.0,114470.0,0.46920597]
[1759194138942,1.22265232,114480.0,114470.0,0.74091754]
[1759194139640,0.37749232,114480.0,114470.0,0.46920597]
[1759194139842,1.22261232,114480.0,114470.0,0.74091754]
[1759194140043,1.22261232,114480.0,114470.0,0.46920597]
[1759194140842,1.30990142,114480.0,114470.0,0.46920597]
[1759194141941,0.46478142,114480.0,114470.0,0.46920597]
[1759194142143,1.58141299,114480.0,114470.0,0.46920597]
[1759194142644,0.95070075,114480.0,114470.0,0.46920597]
[1759194142848,0.37749232,114480.0,114470.0,0.75462754]
[1759194143046,1.22237232,114480.0,114470.0,0.75462754]
[1759194143245,1.22233232,114480.0,114470.0,0.75462754]
[1759194143445,0.37749232,114480.0,114470.0,0.74091754]
[1759194143644,1.22233232,114480.0,114470.0,0.74091754]
[1759194143848,0.37749232,114480.0,114470.0,0.74091754]
[1759194144042,1.22225232,114480.0,114470.0,0.74091754]
[1759194144545,0.37749232,114480.0,114470.0,0.74091754]
[1759194144745,1.22225232,114480.0,114470.0,0.74091754]
[1759194145141,1.58125299,114480.0,114470.0,0.46920597]
[1759194147047,1.49396389,114480.0,114470.0,0.46920597]
[1759194147348,1.58125299,114480.0,114470.0,0.46920597]
[1759194149748,1.49356389,114480.0,114470.0,0.46920597]
[1759194152455,0.64920389,114480.0,114470.0,0.46920597]
[1759194152750,1.58061299,114480.0,114470.0,0.46920597]
[1759194153746,1.56641681,114480.0,114470.0,0.46920597]
[1759194153948,1.57990681,114480.0,114470.0,0.46920597]
[1759194154550,1.49237771,114480.0,114470.0,0.46920597]
[1759194155249,1.51256066,114480.0,114470.0,0.46920597]
[1759194155646,1.59984976,114480.0,114470.0,0.46920597]
[1759194156346,0.12525752,114480.0,114470.0,0.46920597]
[1759194156549,0.10507457,114480.0,114470.0,0.74091754]
[1759194156755,1.18745614,114480.0,114470.0,0.75462754]
[1759194157054,1.20737614,114480.0,114470.0,0.75462754]
[1759194157257,1.20733614,114480.0,114470.0,0.75462754]
[1759194158143,1.57982681,114480.0,114470.0,0.48291597]
[1759194158351,1.60001488,114480.0,114470.0,0.46920597]
[1759194158748,1.57982681,114480.0,114470.0,0.38190927]
[1759194158944,1.60001486,114480.0,114470.0,0.38190927]
[1759194159148,1.60001486,114480.0,114470.0,0.36090927]
[1759194159652,1.60001486,114480.0,114470.0,0.00010927]
[1759194159851,2.27172643,114480.0,114470.0,0.00010927]
[1759194160248,2.36165256,114480.0,114470.0,0.00010927]
[1759194160453,1.99303664,114480.0,114470.0,0.00010927]
[1759194161358,1.96137256,114480.0,114470.0,0.00010927]
[1759194161549,1.96129256,114480.0,114470.0,0.00010927]
[1759194161749,1.96129256,114480.0,114470.0,0.02212927]
[1759194161946,1.60049256,114480.0,114470.0,0.00010927]
[1759194162757,1.96129256,114480.0,114470.0,0.00010927]
[1759194163957,1.11801256,114480.0,114470.0,0.00010927]
[1759194164160,1.68896214,114480.0,114470.0,0.02212927]
[1759194164357,1.72816214,114480.0,114470.0,0.02212927]
[1759194164563,1.72816214,114480.0,114470.0,0.48393597]
[1759194164564,0.12526262,114480.0,114470.0,0.48393597]
[1759194164756,1.24083304,114480.0,114470.0,0.48393597]
[1759194165161,1.32772214,114480.0,114470.0,0.38292927]
[1759194165368,1.32812214,114480.0,114470.0,0.02212927]
[1759194165557,1.32812214,114480.0,114470.0,0.00010927]
[1759194165861,1.60025256,114480.0,114470.0,0.00010927]
[1759194166251,1.32800214,114480.0,114470.0,0.00010927]
[1759194167156,0.48508214,114480.0,114470.0,0.00010927]
[1759194167356,1.32796214,114480.0,114470.0,0.00010927]
[1759194167560,1.60009256,114480.0,114470.0,0.00010927]
[1759194168165,1.96089256,114480.0,114470.0,0.00010927]
[1759194168360,2.36089256,114480.0,114470.0,0.00010927]
[1759194168762,2.39227664,114480.0,114470.0,0.00010927]
[1759194169467,1.35918622,114480.0,114470.0,0.02275927]
[1759194170268,1.32780214,114480.0,114470.0,0.02275927]
[1759194170469,0.48508214,114480.0,114470.0,0.02275927]
[1759194170668,1.32760214,114480.0,114470.0,0.11005577]
[1759194170869,1.32760214,114480.0,114470.0,0.02275927]
[1759194171068,1.32760214,114480.0,114470.0,0.00010927]
[1759194171373,0.21295172,114480.0,114470.0,0.02275927]
[1759194171668,1.32752214,114480.0,114470.0,0.02275927]
[1759194171867,1.32752214,114480.0,114470.0,0.00010927]
[1759194172971,2.36045256,114480.0,114470.0,0.00010927]
[1759194174572,2.39183664,114480.0,114470.0,0.00010927]
[1759194178270,2.39147664,114480.0,114470.0,0.00010927]
[1759194178872,1.99147664,114480.0,114470.0,0.00010927]
[1759194179968,1.99115664,114480.0,114470.0,0.00010927]
[1759194180165,2.39115664,114480.0,114470.0,0.00010927]
[1759194180374,0.1223041,114460.0,114450.0,0.3608]
[1759194180579,1.25634257,114460.0,114450.0,0.3608]
[1759194181387,1.25641075,114460.0,114450.0,0.3608]
[1759194182183,1.25641075,114460.0,114450.0,0.4481118]
[1759194182381,1.16902665,114460.0,114450.0,0.4707618]
[1759194182582,1.25621075,114460.0,114450.0,0.4707618]
[1759194182788,1.25721075,114460.0,114450.0,0.4707618]
[1759194183191,1.25721075,114460.0,114450.0,0.38345]
[1759194183383,1.25721075,114460.0,114450.0,0.02265]
[1759194184092,1.25621075,114460.0,114450.0,0.02265]
[1759194184297,0.1223118,114450.0,114440.0,0.470766]
[1759194184591,0.39444222,114450.0,114440.0,0.51756165]
[1759194184988,1.23580222,114450.0,114440.0,0.51756165]
[1759194185991,1.52806414,114450.0,114440.0,0.3608]
[1759194186289,1.52813216,114450.0,114440.0,0.3628]
[1759194186492,1.52793216,114450.0,114440.0,0.3608]